fUSD/lending_fUSD_20251023
["ID","MTS","AMOUNT","RATE_DAILY","PERIOD"]
[392146819,1761209150146,-62.14190155,0.00024684,2]
[392146821,1761209229124,-231.35994868,0.00024684,2]
[392146825,1761209346102,-195.0,0.00024685,2]
[392146826,1761209346126,-195.0,0.00024708,2]
[392146827,1761209346146,-250.0,0.00024713,2]
[392146828,1761209346171,-1200.0,0.00024803,2]
[392146829,1761209346194,-694.23,0.00024804,2]
[392146830,1761209346215,-306.68508513,0.00025964,2]
[392146831,1761209346237,-694.23,0.00025985,2]
[392146832,1761209346257,-241.32,0.00026676,2]
[392146833,1761209346276,-300.0,0.00026749,2]
[392146834,1761209346296,-300.0,0.00026749,2]
[392146835,1761209346315,-1680.0,0.00026997,2]
[392146836,1761209346333,-1200.0,0.00027151,2]
[392146837,1761209346352,-300.0,0.00027151,2]
[392146838,1761209346373,-300.0,0.00027151,2]
[392146839,1761209346393,-195.0,0.00027151,2]
[392146840,1761209346411,-250.0,0.00027152,2]
[392146841,1761209346430,-1289.22461633,0.00027152,2]
[392146842,1761209347247,-1295.63533828,0.00027152,2]
[392146843,1761209347270,-195.0,0.00027152,2]
[392146844,1761209347289,-1359.71087586,0.00027152,2]
[392146845,1761209347309,-195.0,0.00027152,2]
[392146846,1761209347327,-300.0,0.00027152,2]
[392146847,1761209347514,-986.95299408,0.00027153,2]
[392146848,1761209347534,-250.0,0.00027153,2]
[392146849,1761209347554,-694.23,0.00027166,2]
[392146850,1761209357113,-500.0,0.0002809,5]
[392146851,1761209357136,-500.0,0.0002809,2]
[392146852,1761209357157,-500.0,0.0002809,5]
[392146853,1761209357178,-694.23,0.00028347,2]
[392146854,1761209357206,-420.0,0.00028926,2]
[392146855,1761209357225,-500.0,0.00028985,5]
[392146856,1761209357245,-1375.0,0.00029349,2]
[392146857,1761209357265,-300.0,0.00029349,2]
[392146858,1761209357285,-420.0,0.00029349,2]
[392146859,1761209357304,-1005.0,0.00029385,2]
[392146860,1761209357323,-150.0,0.00029511,2]
[392146861,1761209357342,-151.68810834,0.00029511,2]
[392146862,1761209357361,-150.0,0.00029511,2]
[392146863,1761209357380,-150.0,0.00029511,2]
[392146864,1761209357399,-150.0,0.00029511,2]
[392146865,1761209357418,-102.24673109,0.00029511,2]
[392146866,1761209359114,-49.28879155,0.00029511,2]
[392146867,1761209359136,-150.0,0.00029511,2]
[392146868,1761209359156,-150.0,0.00029511,2]
[392146869,1761209359176,-900.0,0.00029528,2]
[392146870,1761209359211,-694.23,0.00029528,2]
[392146871,1761209359233,-1000.0,0.00029533,5]
[392146872,1761209359252,-201.5261164,0.00029566,2]
[392146873,1761209359272,-150.0,0.00029566,2]
[392146874,1761209359292,-150.0,0.00029566,2]
[392146875,1761209359312,-15.5420525,0.00029566,2]
[392146876,1761209370087,-134.4579475,0.00029566,2]
[392146877,1761209370108,-75.8417244,0.00029566,2]
[392146883,1761209432015,-300.0,0.00029565,2]
[392146884,1761209432024,-114.9125,0.00029565,2]
[392146885,1761209432035,-420.26169723,0.00029565,2]
[392146888,1761209432297,-664.82580277,0.00029565,2]
[392146890,1761209432310,-300.0,0.00029565,120]
[392146892,1761209432322,-74.1582756,0.00029566,2]
[392146894,1761209432331,-201.86098113,0.00029566,2]
[392146896,1761209432341,-150.0,0.00029566,2]
[392146898,1761209432350,-150.0,0.00029566,2]
[392146899,1761209432360,-150.0,0.00029566,2]
[392146901,1761209432369,-150.0,0.00029566,2]
[392146902,1761209432378,-150.0,0.00029566,2]
[392146903,1761209432388,-500.0,0.00029566,2]
[392146904,1761209432398,-150.0,0.00029566,2]
[392146905,1761209432407,-150.0,0.00029566,2]
[392146906,1761209432416,-150.0,0.00029566,2]
[392146907,1761209432425,-150.0,0.00029566,2]
[392146908,1761209432435,-200.0,0.00029566,2]
[392146909,1761209432444,-300.0,0.00029588,120]
[392146910,1761209432454,-300.0,0.00029588,120]
[392146911,1761209432463,-348.91203479,0.00029588,120]
[392146912,1761209432473,-203.6011519,0.00029621,2]
[392146913,1761209432482,-150.0,0.00029621,2]
[392146914,1761209432491,-150.0,0.00029621,2]
[392146915,1761209432500,-152.33881658,0.00029621,2]
[392146916,1761209432509,-150.0,0.00029621,2]
[392146917,1761209432522,-152.40751459,0.00029621,2]
[392146918,1761209432532,-500.0,0.00029621,2]
[392146919,1761209432541,-150.0,0.00029621,2]
[392146920,1761209432551,-150.0,0.00029621,2]
[392146921,1761209432560,-150.0,0.00029676,2]
[392146922,1761209432569,-150.0,0.00029676,2]
[392146923,1761209432579,-150.0,0.00029676,2]
[392146924,1761209432588,-150.0,0.00029676,2]
[392146925,1761209432597,-150.0,0.0002973,2]
[392146926,1761209432606,-200.0,0.0002973,2]
[392146927,1761209432615,-150.0,0.0002973,2]
[392146928,1761209432624,-189.78,0.00029732,2]
[392146929,1761209432633,-150.0,0.00029785,2]
[392146930,1761209432642,-217.48195695,0.00029785,2]
[392146931,1761209432652,-250.0,0.0002984,2]
[392146932,1761209432661,-597.561,0.00029995,24]
[392146933,1761209432670,-151.0,0.00030638,2]
[392146934,1761209432679,-151.0,0.00030638,2]
[392146935,1761209432688,-151.0,0.00030638,2]
[392146936,1761209432698,-151.0,0.00030638,2]
[392146937,1761209432707,-151.0,0.00030638,2]
[392146938,1761209432716,-151.0,0.00030638,2]
[392146939,1761209432725,-151.0,0.00030638,2]
[392146940,1761209432735,-151.0,0.00030638,2]
[392146941,1761209432744,-151.0,0.00030638,2]
[392146942,1761209432753,-151.0,0.00030638,2]
[392146943,1761209432762,-151.0,0.00030638,2]
[392146944,1761209432772,-151.0,0.00030638,2]
[392146945,1761209432781,-151.0,0.00030638,2]
[392146946,1761209432790,-151.0,0.00030638,2]
[392146947,1761209432799,-151.0,0.00030638,2]
[392146948,1761209432809,-151.0,0.00030638,2]
[392146949,1761209432818,-151.0,0.00030638,2]
[392146950,1761209432827,-151.0,0.00030638,2]
[392146951,1761209432836,-151.0,0.00030638,2]
[392146952,1761209432845,-151.0,0.00030638,2]
[392146953,1761209432855,-151.0,0.00030638,2]
[392146954,1761209432865,-151.0,0.00030638,2]
[392146955,1761209432874,-151.0,0.00030638,2]
[392146956,1761209432883,-151.0,0.00030638,2]
[392146957,1761209432895,-151.0,0.00030638,2]
[392146958,1761209432904,-151.0,0.00030638,2]
[392146959,1761209432913,-151.0,0.00030638,2]
[392146960,1761209432922,-151.0,0.00030638,2]
[392146961,1761209432932,-151.0,0.00030638,2]
[392146962,1761209432941,-151.0,0.00030638,2]
[392146963,1761209432950,-151.0,0.00030638,2]
[392146964,1761209432959,-151.0,0.00030638,2]
[392146965,1761209432968,-151.0,0.00030638,2]
[392146966,1761209432977,-151.0,0.00030638,2]
[392146967,1761209432986,-151.0,0.00030638,2]
[392146968,1761209432995,-151.0,0.00030638,2]
[392146969,1761209433005,-151.0,0.00030638,2]
[392146970,1761209433014,-151.0,0.00030638,2]
[392146971,1761209433024,-151.0,0.00030638,2]
[392146972,1761209433033,-151.0,0.00030638,2]
[392146973,1761209433043,-694.23,0.00030709,2]
[392146974,1761209433053,-159.0,0.00031,120]
[392146975,1761209433062,-154.0,0.00031,120]
[392146976,1761209433072,-500.8204809,0.00031682,5]
[392146977,1761209433082,-500.0,0.00031682,5]
[392146978,1761209433091,-501.3626745,0.00031682,5]
[392146979,1761209433101,-500.0,0.00031682,5]
[392146980,1761209433111,-500.0,0.00031682,5]
[392146981,1761209433120,-502.7239296,0.00031682,5]
[392146982,1761209433129,-177.49730883,0.00031682,5]
[392146983,1761209433139,-420.0,0.00031879,3]
[392146984,1761209433149,-694.23,0.0003189,2]
[392146985,1761209433158,-500.0,0.0003223,5]
[392146986,1761209433168,-1000.0,0.0003223,5]
[392146987,1761209433178,-1000.0,0.0003223,5]
[392146988,1761209433189,-266.18,0.00032355,7]
[392146989,1761209433198,-300.0,0.00032522,120]
[392146990,1761209433207,-266.18,0.00032629,7]
[392146991,1761209433217,-1000.0,0.00032778,5]
[392146992,1761209433226,-500.0,0.00032877,2]
[392146993,1761209433235,-1002.71640934,0.00032894,2]
[392146994,1761209433245,-157.99423085,0.00032895,7]
[392146995,1761209433256,-500.0,0.00032895,7]
[392146996,1761209433266,-271.60123828,0.00032895,7]
[392146997,1761209433279,-500.0,0.00032895,7]
[392146998,1761209433289,-500.0,0.00032895,7]
[392146999,1761209433299,-500.0,0.00032895,7]
[392147000,1761209433308,-500.0,0.00032895,7]
[392147001,1761209433320,-500.0,0.00032895,7]
[392147002,1761209433330,-400.95072376,0.00032895,7]
[392147003,1761209433340,-500.0,0.00032895,7]
[392147004,1761209433350,-500.0,0.00032895,7]
[392147005,1761209433359,-500.0,0.00032895,7]
[392147006,1761209433369,-500.0,0.00032895,7]
[392147007,1761209433379,-500.0,0.00032895,7]
[392147008,1761209433388,-500.0,0.00032895,7]
[392147009,1761209433398,-500.0,0.00032895,7]
[392147010,1761209433408,-500.0,0.00032895,7]
[392147011,1761209433418,-500.0,0.00032895,7]
[392147012,1761209433428,-500.0,0.00032895,7]
[392147013,1761209433438,-500.0,0.00032895,7]
[392147014,1761209433447,-500.0,0.00032895,7]
[392147015,1761209433456,-500.0,0.00032895,7]
[392147016,1761209433466,-500.0,0.00032895,7]
[392147017,1761209433475,-500.0,0.00032895,7]
[392147018,1761209433485,-500.0,0.00032895,7]
[392147019,1761209433495,-500.0,0.00032895,7]
[392147020,1761209433505,-500.0,0.00032895,7]
[392147021,1761209433515,-500.0,0.00032895,7]
[392147022,1761209433525,-500.0,0.00032895,7]
[392147023,1761209433535,-500.0,0.00032895,7]
[392147024,1761209433545,-500.0,0.00032895,7]
[392147025,1761209433555,-500.0,0.00032895,7]
[392147026,1761209433564,-500.0,0.00032895,7]
[392147027,1761209433574,-500.0,0.00032895,7]
[392147028,1761209433584,-500.0,0.00032895,7]
[392147029,1761209433594,-500.0,0.00032895,7]
[392147030,1761209433604,-500.0,0.00032895,7]
[392147031,1761209433613,-500.0,0.00032895,7]
[392147032,1761209433623,-500.0,0.00032895,7]
[392147033,1761209433633,-500.0,0.00032895,7]
[392147034,1761209433643,-500.0,0.00032895,7]
[392147035,1761209433652,-500.0,0.00032895,7]
[392147036,1761209433666,-500.0,0.00032895,7]
[392147037,1761209433677,-500.0,0.00032895,7]
[392147038,1761209433687,-500.0,0.00032895,7]
[392147039,1761209433696,-500.0,0.00032895,7]
[392147040,1761209433706,-500.0,0.00032895,7]
[392147041,1761209433716,-500.0,0.00032895,7]
[392147042,1761209433726,-500.0,0.00032895,7]
[392147043,1761209433735,-500.0,0.00032895,7]
[392147044,1761209433745,-500.0,0.00032895,7]
[392147045,1761209433754,-500.0,0.00032895,7]
[392147046,1761209433764,-500.0,0.00032895,7]
[392147047,1761209433773,-500.0,0.00032895,7]
[392147048,1761209433783,-500.0,0.00032895,7]
[392147049,1761209433792,-500.0,0.00032895,7]
[392147050,1761209433802,-500.0,0.00032895,7]
[392147051,1761209433811,-253.31425429,0.00032895,7]
[392147052,1761209433822,-500.0,0.00032895,7]
[392147053,1761209433831,-500.0,0.00032895,7]
[392147054,1761209433841,-500.0,0.00032895,7]
[392147055,1761209433851,-500.0,0.00032895,7]
[392147056,1761209433861,-500.0,0.00032895,7]
[392147057,1761209433871,-500.0,0.00032895,7]
[392147058,1761209433882,-500.0,0.00032895,7]
[392147059,1761209433891,-500.0,0.00032895,7]
[392147060,1761209433901,-500.0,0.00032895,7]
[392147061,1761209433911,-500.0,0.00032895,7]
[392147062,1761209433920,-500.0,0.00032895,7]
[392147063,1761209433930,-500.0,0.00032895,7]
[392147064,1761209433940,-500.0,0.00032895,7]
[392147065,1761209433950,-500.0,0.00032895,7]
[392147066,1761209433959,-500.0,0.00032895,7]
[392147067,1761209433968,-500.0,0.00032895,7]
[392147068,1761209433978,-500.0,0.00032895,7]
[392147069,1761209433988,-300.0,0.00032895,7]
[392147070,1761209433997,-500.0,0.00032895,7]
[392147071,1761209434006,-500.0,0.00032895,7]
[392147072,1761209434017,-500.0,0.00032895,7]
[392147073,1761209434027,-500.0,0.00032895,7]
[392147074,1761209434041,-500.0,0.00032895,7]
[392147075,1761209434052,-500.0,0.00032895,7]
[392147076,1761209434062,-500.0,0.00032895,7]
[392147077,1761209434071,-500.0,0.00032895,7]
[392147078,1761209434081,-500.0,0.00032895,7]
[392147079,1761209434091,-500.0,0.00032896,5]
[392147080,1761209434101,-524.55788713,0.00032896,5]
[392147081,1761209434111,-292.72610234,0.00032896,5]
[392147082,1761209434120,-266.19,0.00032903,7]
[392147083,1761209434131,-1009.02525228,0.00032931,2]
[392147084,1761209434141,-500.0,0.00032932,2]
[392147085,1761209434151,-239.65356875,0.00032987,2]
[392147086,1761209434160,-694.23,0.00033072,2]
[392147087,1761209434170,-241.32,0.00033165,2]
[392147088,1761209434179,-694.23,0.00034253,2]
[392147089,1761209434189,-480.0,0.00034374,3]
[392147090,1761209434199,-1010.25,0.00035162,2]
[392147091,1761209434209,-694.23,0.00035434,2]
[392147092,1761209434218,-333.5,0.00035705,120]
[392147093,1761209434228,-500.0,0.0003579,7]
[392147094,1761209434237,-10000.0,0.00036578,30]
[392147095,1761209434247,-197.0,0.0003658,30]
[392147096,1761209434257,-694.23,0.00036615,2]
[392147097,1761209434267,-601.19,0.0003689,2]
[392147098,1761209434277,-1000.0,0.00037303,2]
[392147099,1761209434286,-694.23,0.00037796,2]
[392147100,1761209434296,-196.3286,0.00038888,30]
[392147101,1761209434305,-694.23,0.00038977,2]
[392147102,1761209434315,-150.40439509,0.00039266,7]
[392147103,1761209434328,-241.32,0.00039654,2]
[392147104,1761209434338,-694.23,0.00040158,2]
[392147105,1761209434348,-150.0,0.00040488,4]
[392147106,1761209434359,-150.0,0.00040488,4]
[392147107,1761209434368,-150.0,0.00040488,4]
[392147108,1761209434377,-150.0,0.00040488,4]
[392147109,1761209434387,-150.0,0.00040488,4]
[392147110,1761209434399,-150.0,0.00040488,4]
[392147111,1761209434409,-150.0,0.00040488,4]
[392147112,1761209434421,-150.0,0.00040488,4]
[392147113,1761209434430,-150.0,0.00040488,4]
[392147114,1761209434440,-150.0,0.00040488,4]
[392147115,1761209434449,-150.0,0.00040488,4]
[392147116,1761209434458,-333.5,0.00040686,120]
[392147117,1761209434468,-150.0,0.0004105,7]
[392147118,1761209434478,-150.0,0.0004105,7]
[392147119,1761209434488,-150.0,0.00041096,120]
[392147120,1761209434498,-150.0,0.00041151,120]
[392147121,1761209434509,-200.0,0.00041206,120]
[392147122,1761209434518,-694.23,0.00041339,2]
[392147123,1761209434528,-150.0,0.00041387,30]
[392147124,1761209434538,-150.0,0.00041387,30]
[392147125,1761209434547,-150.0,0.00041612,30]
[392147126,1761209434556,-150.0,0.00041612,30]
[392147127,1761209434565,-150.0,0.00041612,30]
[392147128,1761209434574,-150.0,0.00041612,30]
[392147129,1761209434583,-168.0,0.00041835,2]
[392147130,1761209434594,-1000.0,0.00041966,2]
[392147131,1761209434603,-150.0,0.00041987,30]
[392147132,1761209434613,-150.0,0.00041987,30]
[392147133,1761209434622,-150.0,0.00042175,30]
[392147134,1761209434632,-150.0,0.00042175,30]
[392147135,1761209434642,-150.0,0.00042287,30]
[392147136,1761209434652,-150.0,0.00042287,30]
[392147137,1761209434661,-694.23,0.00042521,2]
[392147138,1761209434671,-168.0,0.00042594,2]
[392147139,1761209434680,-150.0,0.00042737,30]
[392147140,1761209434690,-150.0,0.00042737,30]
[392147141,1761209434699,-150.0,0.00042737,30]
[392147142,1761209434709,-150.0,0.00042737,30]
[392147143,1761209434718,-1979.26,0.00043,120]
[392147144,1761209434727,-150.0,0.00043187,30]
[392147145,1761209434736,-150.0,0.00043187,30]
[392147146,1761209434745,-79.80894333,0.00043299,30]
[392147147,1761209434761,-70.19105667,0.00043299,30]
[392147148,1761209434770,-150.0,0.00043299,30]
[392147149,1761209434780,-168.0,0.00043376,2]
[392147150,1761209434789,-150.0,0.00043487,30]
[392147151,1761209434798,-137.71854429,0.00043487,30]
[392147152,1761209434810,-12.28145571,0.00043487,30]
[392147153,1761209434820,-694.23,0.00043702,2]
[392147154,1761209434829,-150.0,0.00043862,30]
[392147155,1761209434838,-150.0,0.00043862,30]
[392147156,1761209434848,-150.0,0.00043862,30]
[392147157,1761209434857,-150.0,0.00043862,30]
[392147158,1761209434867,-168.0,0.00044047,2]
[392147159,1761209434876,-150.0,0.00044087,30]
[392147160,1761209434885,-150.0,0.00044087,30]
[392147161,1761209434895,-168.0,0.00044261,2]
[392147162,1761209434905,-168.0,0.00044305,2]
[392147163,1761209434915,-168.0,0.00044384,2]
[392147164,1761209434924,-150.0,0.00044424,30]
[392147165,1761209434934,-47.37202029,0.00044424,30]
[392147166,1761209434946,-102.62797971,0.00044424,30]
[392147167,1761209434956,-500.0,0.000446,16]
[392147168,1761209434965,-1000.0,0.000447,16]
[392147169,1761209434974,-168.0,0.00044708,2]
[392147170,1761209434984,-241.76584636,0.00044782,2]
[392147171,1761209434995,-345.62825364,0.00044782,2]
[392147172,1761209435005,-466.29434677,0.000448,16]
[392147173,1761209435016,-250.0,0.000448,16]
[392147175,1761209437937,-155.0,0.000365,30]
[392147176,1761209437948,-153.0,0.000365,30]
[392147177,1761209437958,-153.0,0.000365,30]
[392147178,1761209437968,-153.0,0.000365,30]
[392147179,1761209437979,-153.0,0.000365,30]
[392147180,1761209437988,-153.0,0.000365,30]
[392147181,1761209437998,-153.0,0.000365,30]
[392147182,1761209438008,-783.70565323,0.000448,16]
[392147183,1761209438018,-3988.83589758,0.000448,2]
[392147184,1761209438028,-3830.72431952,0.000448,15]
[392147185,1761209438038,-3830.7243195,0.00044871,15]
[392147186,1761209438047,-694.23,0.00044883,2]
[392147187,1761209438057,-636.50877359,0.00044889,6]
[392147188,1761209438066,-379.15483627,0.00044899,120]
[392147189,1761209438076,-500.0,0.00044899,120]
[392147190,1761209438087,-281.79827962,0.00044899,120]
[392147191,1761209438097,-500.0,0.00044899,120]
[392147192,1761209438108,-483.35986883,0.00044899,120]
[392147193,1761209438118,-500.0,0.000449,60]
[392147194,1761209438129,-500.0,0.000449,60]
[392147195,1761209438139,-500.0,0.000449,60]
[392147205,1761209438292,-500.0,0.000449,60]
[392147207,1761209438302,-500.0,0.000449,60]
[392147209,1761209438313,-500.0,0.000449,60]
[392147211,1761209438327,-500.0,0.000449,60]
[392147213,1761209438342,-500.0,0.000449,60]
[392147215,1761209438352,-500.0,0.000449,60]
[392147217,1761209438362,-500.0,0.000449,60]
[392147219,1761209438372,-500.0,0.000449,60]
[392147220,1761209438382,-500.0,0.000449,60]
[392147221,1761209438398,-500.0,0.000449,60]
[392147222,1761209438407,-500.0,0.000449,60]
[392147223,1761209438417,-338.00015029,0.000449,60]
[392147224,1761209438427,-202.69130789,0.000449,17]
[392147225,1761209438437,-5000.0,0.000449,120]
[392147226,1761209438447,-19319.3116,0.000449,120]
[392147227,1761209438456,-19003.83709841,0.000449,15]
[392147228,1761209438466,-166.81887433,0.000449,15]
[392147229,1761209438475,-2100.0,0.000449,16]
[392147230,1761209438485,-1036.83220704,0.000449,120]
[392147231,1761209438495,-286.9043447,0.000449,120]
[392147232,1761209438505,-606.11760612,0.000449,28]
[392147233,1761209438514,-3830.7243195,0.00044942,15]
[392147234,1761209438524,-501.50763164,0.00044973,2]
[392147235,1761209438533,-200.0,0.00044973,10]
[392147236,1761209438542,-9348.0,0.00044986,120]
[392147237,1761209438551,-150.0,0.00044986,30]
[392147238,1761209438560,-150.0,0.00044986,30]
[392147239,1761209438570,-150.0,0.00044986,30]
[392147240,1761209438580,-150.0,0.00044986,30]
[392147241,1761209438589,-150.0,0.00044986,30]
[392147242,1761209438599,-150.0,0.00044986,30]
[392147243,1761209438608,-150.0,0.00044986,30]
[392147244,1761209438618,-150.0,0.00044986,30]
[392147245,1761209438627,-150.0,0.00044986,30]
[392147246,1761209438636,-150.0,0.00044986,30]
[392147247,1761209438646,-151.0,0.00044988,120]
[392147248,1761209438656,-257.73880547,0.0004499,7]
[392147249,1761209438666,-150.43,0.0004499,2]
[392147250,1761209438675,-19003.83709839,0.00044991,15]
[392147251,1761209438684,-623.70258737,0.00044999,2]
[392147252,1761209438695,-643.81058782,0.00044999,120]
[392147253,1761209438704,-387.53942031,0.00044999,120]
[392147254,1761209438713,-300.0,0.00044999,120]
[392147255,1761209438723,-501.36648477,0.00044999,120]
[392147256,1761209438733,-500.0,0.00044999,120]
[392147257,1761209438743,-609.54,0.00044999,120]
[392147258,1761209438753,-500.0,0.00044999,120]
[392147259,1761209438762,-459.69860748,0.00044999,120]
[392147260,1761209438772,-500.0,0.00044999,120]
[392147261,1761209438781,-500.0,0.00044999,120]
[392147262,1761209438790,-500.0,0.00044999,120]
[392147263,1761209438800,-377.52772794,0.00044999,120]
[392147264,1761209438809,-500.0,0.00044999,120]
[392147265,1761209438819,-1006.45,0.00044999,120]
[392147266,1761209438828,-150.0,0.00044999,120]
[392147267,1761209438838,-500.0,0.00044999,2]
[392147268,1761209438848,-500.17457096,0.00044999,2]
[392147269,1761209438858,-500.0,0.00044999,120]
[392147270,1761209438868,-7219.27,0.00044999,120]
[392147271,1761209438878,-7219.27,0.00044999,120]
[392147272,1761209438888,-7219.27,0.00044999,120]
[392147273,1761209438897,-7219.27,0.00044999,120]
[392147274,1761209438907,-7219.27,0.00044999,120]
[392147275,1761209438917,-7219.27,0.00044999,120]
[392147276,1761209438926,-7219.27,0.00044999,120]
[392147277,1761209438937,-7219.27,0.00044999,120]
[392147278,1761209438946,-7219.27,0.00044999,120]
[392147279,1761209438956,-7219.27,0.00044999,120]
[392147280,1761209438965,-500.0,0.00044999,120]
[392147281,1761209438975,-947.49,0.00044999,120]
[392147282,1761209438985,-578.54,0.00044999,120]
[392147283,1761209438994,-610.72558822,0.00044999,120]
[392147284,1761209439004,-500.0,0.00044999,120]
[392147285,1761209439013,-500.0,0.00044999,120]
[392147286,1761209439022,-500.0,0.00044999,120]
[392147287,1761209439032,-500.0,0.00044999,120]
[392147288,1761209439041,-500.0,0.00044999,120]
[392147289,1761209439051,-856000.0,0.00045,120]
[392147290,1761209439061,-1000000.0,0.00045,120]
[392147291,1761209439071,-500000.0,0.00045,120]
[392147292,1761209439080,-4150.29,0.00045,120]
[392147293,1761209439090,-289.51,0.00045,30]
[392147294,1761209439099,-1572.3,0.00045,14]
[392147295,1761209439108,-4961.19,0.00045,30]
[392147296,1761209439117,-500.0,0.00045,16]
[392147297,1761209439127,-500.0,0.00045,16]
[392147298,1761209439136,-500.0,0.00045,16]
[392147299,1761209439146,-500.0,0.00045,16]
[392147300,1761209439157,-500.0,0.00045,16]
[392147301,1761209439168,-500.0,0.00045,16]
[392147302,1761209439178,-500.0,0.00045,16]
[392147303,1761209439190,-500.0,0.00045,16]
[392147304,1761209439201,-500.0,0.00045,32]
[392147305,1761209439213,-3830.7243195,0.00045013,15]
[392147306,1761209439223,-19003.83709839,0.00045082,15]
[392147307,1761209439232,-3830.7243195,0.00045084,15]
[392147308,1761209439242,-168.0,0.00045101,2]
[392147309,1761209439252,-606.11760612,0.00045114,28]
[392147310,1761209439262,-168.0,0.00045125,2]
[392147311,1761209439273,-3830.7243195,0.00045155,15]
[392147312,1761209439283,-19003.83709839,0.00045174,15]
[392147313,1761209439293,-7219.27,0.00045199,120]
[392147314,1761209439303,-202000.0,0.000452,120]
[392147315,1761209439315,-389.49005211,0.00045223,30]
[392147316,1761209439327,-3830.7243195,0.00045226,15]
[392147317,1761209439336,-19003.83709839,0.00045265,15]
[392147318,1761209439349,-472.90693744,0.00045273,120]
[392147319,1761209439359,-1006.45,0.00045273,120]
[392147320,1761209439369,-500.0,0.00045273,120]
[392147321,1761209439379,-500.0,0.00045273,120]
[392147322,1761209439390,-947.49,0.00045273,120]
[392147323,1761209439400,-578.54,0.00045273,120]
[392147324,1761209439410,-500.0,0.00045273,120]
[392147325,1761209439419,-500.0,0.00045273,120]
[392147326,1761209439429,-1160.2263599,0.00045279,2]
[392147327,1761209439440,-3830.7243195,0.00045297,15]
[392147328,1761209439450,-606.11760612,0.00045329,28]
[392147329,1761209439460,-19003.83709839,0.00045356,15]
[392147330,1761209439470,-3830.7243195,0.00045368,15]
[392147331,1761209439480,-1174.90109981,0.000454,2]
[392147332,1761209439489,-200.47737513,0.000454,9]
[392147333,1761209439499,-3830.7243195,0.00045439,15]
[392147334,1761209439508,-19003.83709839,0.00045447,15]
[392147335,1761209439517,-4446.0,0.00045479,120]
[392147336,1761209439526,-202.69130789,0.00045482,20]
[392147337,1761209439536,-257.73880547,0.0004549,7]
[392147338,1761209439546,-150.43,0.0004549,2]
[392147339,1761209439555,-500.0,0.00045499,120]
[392147340,1761209439565,-500.0,0.00045499,120]
[392147341,1761209439574,-500.0,0.00045499,120]
[392147342,1761209439583,-7219.27,0.00045499,120]
[392147343,1761209439592,-7219.27,0.00045499,120]
[392147344,1761209439602,-7219.27,0.00045499,120]
[392147345,1761209439611,-7219.27,0.00045499,120]
[392147346,1761209439621,-7219.27,0.00045499,120]
[392147347,1761209439630,-7219.27,0.00045499,120]
[392147348,1761209439640,-7219.27,0.00045499,120]
[392147349,1761209439649,-7219.27,0.00045499,120]
[392147350,1761209439659,-573993.0,0.000455,120]
[392147351,1761209439668,-1000000.0,0.000455,120]
[392147352,1761209439678,-500000.0,0.000455,120]